{"text_format":"1","workbook":"xlsx","n_sheets":8,"sheets":["INDEX","FITXA A","FITXA B","FITXA B 2","FITXA B 3","FITXA C","FITXA D","ayudas"],"not_rendered":{"charts":0,"images":35,"macros":1,"external_links":0,"defined_names":7,"comments":4,"pivot_tables":0},"unopened":[],"bounds":{"document_bytes":16777216,"sheet_cells":100000,"rows_first":2000,"rows_last":500,"rows_between":2000,"halvings":0,"cell_chars":16384,"cell_head_chars":4096},"cells_cut":0,"cells_raw":0,"read":"whole","date_system":"1900"}

{"sheet":"INDEX","index":0,"n_rows":23,"n_cols":5,"rows_kept":23,"cut":false,"hidden":false,"merged":[[2,1,2,7],[3,1,3,7],[22,4,22,11]]}
[]
[null,"ESTRATÈGIA DE REGENERACIÓ URBANA"]
[null,"Cliqueu els botons de \"FITXA X\" o els apartats d'aquesta, per a anar directament a la fitxa triada."]
[null,"Cliqueu els enllaços “Crea nova FITXA X” per a duplicar aquesta fitxa quan necessiteu introduir més informació. (Només es permeten dues còpies de la Fitxa B)"]
[]
[null,null,"FITXA A:","Actuacions preliminars- Identificació inicial de problemes"]
[null,null,null,"1. ","DADES DEL MUNICIPI"]
[null,null,null,"2. ","DADES DE L'ÁREA"]
[null,null,null,"3. ","CONCLUSIONS"]
[null,null,"FITXA B:"," Anàlisi integrada"]
[null,null,null,"1.","ANÀLISI SEGONS VEUS (Visor d'Espais Urbans Sensibles de la Comunitat Valenciana)"]
[null,null,null,"2.","ANÀLISI MUNICIPAL DE L'ÀREA"]
[null,null,null,"3.","ANÀLISI MITJANÇANT ALTRES ESTUDIS"]
[null,null,null,"4.","PROCÉS PARTICIPATIU EN L'ETAPA D'ANÀLISI"]
[null,null,null,"5.","ANÀLISI DAFO"]
[null,null,"FITXA C:","Diagnòstic i resultats"]
[null,null,null,"1.","NECESSITATS"]
[null,null,null,"2.","TEMES PRIORITARIS DE L'AGENDA URBANA EU"]
[null,null,"FITXA D:","Pla d'implementació"]
[null,null,null,"1.","IDENTIFICACIÓ DE LA LÍNIA D'ACTUACIÓ"]
[null,null,null,"2.","MEMÒRIA DESCRIPTIVA DE LA LÍNIA D'ACTUACIÓ"]
[]
[null,null,null,null,"INDICACIONS PER AL MANEIG DE LES FITXES:\n\nLes fitxes s'han d'emplenar preferentment amb l'aplicació Microsoft Excel.\nNo elimineu fulls del llibre excel.\nPer al correcte funcionament del full de càlcul les macros han d'estar activades. La primera vegada que s'obrin amb l'aplicació les fitxes ERU pot aparéixer un avís que indica \"Advertiment de seguretat: Les macros s'han deshabilitat. Opcions\". Hem d'entrar en \"Opcions\" i triar \"Habilita aquest contingut\".\nSi necessiteu més espai per a emplenar informació, des de l'\"Índex\" podeu crear dues noves \"Fitxa B\" i totes les \"Fitxa D\" que necessiteu.\n"]

{"sheet":"FITXA A","index":1,"n_rows":115,"n_cols":35,"rows_kept":115,"cut":false,"hidden":false,"merged":[[102,1,113,44],[8,33,8,44],[9,33,9,44],[7,1,9,6],[7,7,9,25],[8,27,8,32],[9,27,9,32],[68,1,85,44],[88,2,88,44],[89,1,100,44],[13,2,13,25],[14,2,14,25],[13,26,13,27],[15,2,15,25],[16,2,16,25],[16,26,16,27],[114,2,114,22],[114,23,114,44],[101,2,101,44],[18,2,18,44],[23,2,23,25],[20,2,20,25],[21,2,21,25],[19,2,19,25],[19,28,19,33],[32,2,32,44],[33,1,56,44],[87,1,87,44],[26,2,26,44],[19,34,19,44],[20,34,20,44],[21,34,21,44],[6,1,6,44],[12,2,12,25],[12,26,12,27],[12,28,12,44],[7,33,7,44],[11,2,11,44],[7,27,7,32],[13,28,13,44],[14,28,14,44],[15,28,15,44],[16,28,16,44],[14,26,14,27],[15,26,15,27],[22,34,22,44],[23,34,23,44],[22,2,22,25],[19,26,19,27],[20,26,20,27],[21,26,21,27],[22,26,22,27],[23,26,23,27],[20,28,20,33],[21,28,21,33],[22,28,22,33],[23,28,23,33],[59,1,65,44],[29,2,29,7],[29,8,29,44],[27,2,27,7],[67,2,67,44],[27,8,27,44],[28,2,28,7],[28,8,28,44],[31,1,31,44],[58,2,58,44],[1,1,1,31],[1,32,4,44],[2,1,2,7],[2,8,2,31],[3,2,3,7],[3,9,3,31],[4,1,4,31]]}
[]
[null,"Estratègia de Regeneració Urbana"]
[null,"Data de redacció:",null,null,null,null,null,null,"Títol:"]
[]
[null,"FITXA A: Actuacions preliminars- Identificació inicial de problemes"]
[]
[null,"1. DADES DEL MUNICIPI"]
[null,"Municipi",null,null,null,null,null,null,null,null,null,null,null,null,null,null,null,null,null,null,null,null,null,null,null,null,null,"Província"]
[null,null,null,null,null,null,null,null,null,null,null,null,null,null,null,null,null,null,null,null,null,null,null,null,null,null,null,"Població"]
[null,null,null,null,null,null,null,null,null,null,null,null,null,null,null,null,null,null,null,null,null,null,null,null,null,null,null,"Superfície (Km2)"]
[]
[null,null,"Instruments de planejament"]
[null,null,"Denominació",null,null,null,null,null,null,null,null,null,null,null,null,null,null,null,null,null,null,null,null,null,null,null,"Any",null,"Tramitació"]
[null,"1.  ","Pla general d'ordenació urbana (Any d'aprovació).",null,null,null,null,null,null,null,null,null,null,null,null,null,null,null,null,null,null,null,null,null,null,null,null,null,"Existeix versió en tràmit"]
[null,"2.  ",null,null,null,null,null,null,null,null,null,null,null,null,null,null,null,null,null,null,null,null,null,null,null,null,null,null,"Existeix versió en tràmit"]
[null,"3.  ",null,null,null,null,null,null,null,null,null,null,null,null,null,null,null,null,null,null,null,null,null,null,null,null,null,null,"Existeix versió en tràmit"]
[null,"4.  ",null,null,null,null,null,null,null,null,null,null,null,null,null,null,null,null,null,null,null,null,null,null,null,null,null,null,"Existeix versió en tràmit"]
[]
[null,null,"Estratègies, estudis, plans o programes, municipals o supramunicipals que afecten l'àrea"]
[null,null,"Denominació",null,null,null,null,null,null,null,null,null,null,null,null,null,null,null,null,null,null,null,null,null,null,null,"Any",null,"Enllaç",null,null,null,null,null,"Observacions"]
[null,"1.  ","EDUSI - Estratègia de Desenvolupament Urbà Sostenible Integrat"]
[null,"2.  "]
[null,"3.  "]
[null,"4.  "]
[]
[]
[null,null,"Ajudes públiques d'altres administracions"]
[null,null,"Pla estatal"]
[null,null,"FEDER"]
[null,null,"Uns altres"]
[]
[null,"2. DADES DE L'ÀREA"]
[null,null,"Delimitació de l'àrea- Pla"]
[]
[]
[]
[]
[]
[]
[]
[]
[]
[]
[]
[]
[]
[]
[]
[]
[]
[]
[]
[]
[]
[]
[]
[]
[]
[null,null,"Delimitació de l'àrea- Descripció"]
[]
[]
[]
[]
[]
[]
[]
[]
[null,null,"Foto identificativa de l'àrea - Estat previ a l’ERU"]
[]
[]
[]
[]
[]
[]
[]
[]
[]
[]
[]
[]
[]
[]
[]
[]
[]
[]
[]
[null,"3. CONCLUSIONS"]
[null,null,"Conclusions del procés participatiu en l'etapa d'identificació"]
[]
[]
[]
[]
[]
[]
[]
[]
[]
[]
[]
[]
[null,null,"Objecte de l’ERU"]
[]
[]
[]
[]
[]
[]
[]
[]
[]
[]
[]
[]
[null,null,"Termini d'execució (mesos)"]

{"sheet":"FITXA B","index":2,"n_rows":185,"n_cols":46,"rows_kept":185,"cut":false,"hidden":false,"merged":[[7,1,7,47],[22,19,22,26],[22,27,22,30],[22,36,22,43],[22,44,22,47],[8,19,8,26],[8,27,8,30],[8,36,8,43],[8,44,8,47],[9,36,10,39],[11,15,11,18],[8,1,8,13],[8,14,8,16],[8,31,8,33],[9,14,10,14],[11,14,19,14],[9,15,10,18],[9,19,10,22],[9,31,10,31],[9,32,10,35],[17,15,17,18],[8,17,8,18],[12,32,12,35],[9,23,9,30],[114,1,114,47],[115,2,115,47],[8,34,8,35],[13,40,13,43],[14,32,14,35],[14,36,16,39],[18,23,18,26],[19,23,19,26],[11,19,13,22],[14,19,16,22],[17,19,19,22],[11,27,13,30],[14,27,16,30],[17,27,19,30],[14,23,14,26],[15,23,15,26],[16,23,16,26],[11,23,11,26],[12,23,12,26],[13,23,13,26],[11,32,11,35],[11,36,13,39],[11,40,11,43],[41,34,41,37],[10,23,10,26],[10,27,10,30],[184,1,186,1],[184,2,186,2],[184,3,186,3],[184,4,186,23],[184,24,186,24],[184,25,186,25],[184,26,186,26],[184,27,186,47],[181,1,183,1],[181,2,183,2],[181,3,183,3],[181,4,183,23],[181,24,183,24],[181,25,183,25],[181,26,183,26],[181,27,183,47],[175,26,177,26],[175,27,177,47],[178,1,180,1],[178,2,180,2],[178,3,180,3],[178,4,180,23],[178,24,180,24],[178,25,180,25],[178,26,180,26],[178,27,180,47],[175,1,177,1],[175,2,177,2],[175,3,177,3],[175,4,177,23],[175,24,177,24],[175,25,177,25],[172,24,174,24],[172,25,174,25],[172,26,174,26],[172,27,174,47],[169,1,171,1],[169,2,171,2],[169,3,171,3],[169,4,171,23],[169,24,171,24],[169,25,171,25],[172,1,174,1],[172,2,174,2],[172,3,174,3],[172,4,174,23],[166,1,168,1],[166,2,168,2],[166,3,168,3],[166,4,168,23],[166,24,168,24],[166,25,168,25],[166,26,168,26],[166,27,168,47],[169,26,171,26],[169,27,171,47],[162,1,162,3],[162,4,162,23],[162,24,162,26],[162,27,162,47],[163,1,165,1],[163,2,165,2],[163,3,165,3],[163,4,165,23],[163,24,165,24],[163,25,165,25],[163,26,165,26],[163,27,165,47],[156,26,158,26],[156,27,158,47],[159,1,161,1],[159,2,161,2],[159,3,161,3],[159,4,161,23],[159,24,161,24],[159,25,161,25],[159,26,161,26],[159,27,161,47],[156,1,158,1],[156,2,158,2],[156,3,158,3],[156,4,158,23],[156,24,158,24],[156,25,158,25],[150,26,152,26],[150,27,152,47],[153,1,155,1],[153,2,155,2],[153,3,155,3],[153,4,155,23],[153,24,155,24],[153,25,155,25],[153,26,155,26],[153,27,155,47],[150,1,152,1],[150,2,152,2],[150,3,152,3],[150,4,152,23],[150,24,152,24],[150,25,152,25],[147,1,149,1],[147,2,149,2],[147,3,149,3],[147,4,149,23],[147,24,149,24],[147,25,149,25],[147,26,149,26],[147,27,149,47],[144,1,146,1],[144,2,146,2],[144,3,146,3],[144,4,146,23],[144,24,146,24],[144,25,146,25],[141,1,143,1],[141,2,143,2],[141,3,143,3],[141,4,143,23],[141,24,143,24],[141,25,143,25],[141,26,143,26],[141,27,143,47],[144,26,146,26],[144,27,146,47],[137,1,137,3],[137,4,137,23],[137,24,137,26],[137,27,137,47],[138,1,140,1],[138,2,140,2],[138,3,140,3],[138,4,140,23],[138,24,140,24],[138,25,140,25],[138,26,140,26],[138,27,140,47],[107,35,107,41],[107,42,107,47],[108,14,112,20],[108,21,112,47],[135,1,135,47],[136,2,136,23],[136,25,136,47],[101,14,105,20],[101,21,105,47],[106,1,112,6],[106,7,112,13],[106,14,106,20],[106,21,106,47],[107,14,107,20],[99,1,105,6],[99,7,105,13],[99,14,99,20],[99,21,99,47],[100,14,100,20],[116,1,119,47],[121,2,121,47],[122,1,128,47],[130,2,130,47],[131,1,134,47],[92,1,98,6],[92,7,98,13],[92,14,92,20],[92,21,92,47],[93,14,93,20],[100,35,100,41],[100,42,100,47],[93,35,93,41],[93,42,93,47],[94,14,98,20],[94,21,98,47],[93,21,93,23],[93,28,93,34],[100,21,100,23],[100,28,100,34],[80,14,84,20],[80,21,84,47],[85,1,91,6],[85,7,91,13],[85,14,85,20],[85,21,85,47],[86,14,86,20],[78,1,84,6],[78,7,84,13],[78,14,78,20],[78,21,78,47],[79,14,79,20],[79,35,79,41],[79,42,79,47],[86,35,86,41],[86,42,86,47],[87,14,91,20],[87,21,91,47],[79,21,79,23],[79,28,79,34],[86,21,86,23],[86,28,86,34],[76,1,76,47],[77,2,77,13],[77,14,77,26],[77,27,77,40],[77,41,77,47],[60,1,74,6],[60,7,62,13],[60,14,60,20],[60,21,60,47],[61,14,61,20],[61,21,61,23],[61,28,61,34],[61,35,61,41],[61,42,61,47],[64,14,64,20],[64,21,64,23],[64,28,64,34],[64,35,64,41],[64,42,64,47],[65,14,65,20],[65,21,65,47],[66,7,68,13],[66,14,66,20],[66,21,66,47],[59,1,59,6],[59,7,59,13],[59,14,59,47],[55,26,55,29],[55,31,55,42],[55,43,55,46],[56,14,56,25],[56,26,56,29],[56,31,56,42],[56,43,56,46],[49,1,57,6],[49,7,50,13],[49,14,49,42],[49,43,49,46],[50,14,50,42],[50,43,50,46],[51,7,53,13],[51,14,51,42],[51,43,51,46],[52,14,52,42],[52,43,52,46],[53,14,53,42],[53,43,53,46],[54,7,57,13],[14,15,14,18],[15,15,15,18],[16,15,16,18],[41,38,41,41],[38,42,38,44],[38,45,38,47],[41,17,41,20],[38,21,38,24],[39,21,39,24],[40,21,40,24],[41,21,41,24],[38,25,38,27],[25,44,27,47],[23,32,24,35],[25,32,25,35],[26,15,26,18],[26,23,26,26],[26,32,26,35],[38,14,38,16],[38,17,38,20],[38,34,38,37],[40,25,40,27],[40,28,40,30],[40,31,40,33],[54,14,54,25],[54,26,54,29],[54,31,54,42],[54,43,54,46],[55,14,55,25],[57,14,57,25],[57,26,57,29],[57,31,57,42],[57,43,57,47],[45,1,45,47],[46,1,48,6],[46,7,48,13],[46,14,46,47],[47,14,47,42],[47,43,47,46],[48,14,48,42],[18,7,18,13],[19,7,19,13],[17,1,19,6],[17,7,17,13],[48,43,48,46],[25,1,27,6],[25,7,25,13],[18,15,18,18],[19,15,19,18],[17,23,17,26],[26,7,26,13],[27,7,27,13],[25,36,27,39],[38,28,38,30],[38,31,38,33],[26,40,26,43],[27,40,27,43],[6,1,6,47],[1,1,1,32],[1,33,4,47],[2,1,2,7],[2,8,2,32],[3,2,3,7],[3,9,3,32],[4,1,4,32],[16,7,16,13],[15,7,15,13],[14,1,16,6],[14,7,14,13],[13,7,13,13],[12,7,12,13],[11,1,13,6],[11,7,11,13],[11,31,19,31],[9,7,10,13],[9,1,10,6],[18,40,18,43],[19,32,19,35],[19,40,19,43],[12,15,12,18],[13,15,13,18],[11,44,13,47],[21,14,21,30],[12,40,12,43],[13,32,13,35],[32,7,32,13],[33,7,33,13],[31,1,33,6],[31,7,31,13],[29,7,29,13],[30,7,30,13],[28,36,30,39],[28,40,28,43],[28,44,30,47],[29,40,29,43],[30,23,30,26],[28,1,30,6],[28,7,28,13],[30,32,30,35],[25,14,33,14],[25,15,25,18],[25,19,27,22],[25,23,25,26],[25,27,27,30],[25,31,33,31],[27,23,27,26],[27,32,27,35],[40,42,40,44],[39,45,39,47],[39,14,39,16],[39,25,39,27],[39,28,39,30],[39,31,39,33],[39,42,39,44],[39,17,39,20],[40,17,40,20],[39,34,39,37],[40,34,40,37],[38,38,38,41],[39,38,39,41],[40,38,40,41],[28,23,28,26],[28,27,30,30],[28,32,28,35],[29,15,29,18],[29,23,29,26],[29,32,29,35],[30,15,30,18],[43,14,43,47],[42,1,43,6],[42,7,42,13],[43,7,43,13],[42,14,42,47],[20,1,20,13],[21,1,21,13],[41,14,41,16],[41,25,41,27],[41,28,41,30],[41,31,41,33],[41,42,41,44],[23,1,24,6],[23,7,24,13],[41,45,41,47],[40,45,40,47],[40,14,40,16],[22,1,22,13],[23,14,24,14],[23,15,24,18],[23,19,24,22],[23,31,24,31],[37,1,37,47],[38,1,38,13],[22,14,22,16],[22,17,22,18],[22,31,22,33],[22,34,22,35],[30,40,30,43],[31,15,31,18],[31,19,33,22],[31,23,31,26],[31,27,33,30],[31,32,31,35],[31,36,33,39],[31,40,31,43],[32,15,32,18],[32,23,32,26],[32,32,32,35],[32,40,32,43],[33,15,33,18],[33,23,33,26],[33,32,33,35],[33,40,33,43],[27,15,27,18],[25,40,25,43],[28,15,28,18],[28,19,30,22],[107,21,107,23],[107,28,107,34],[34,1,34,13],[34,14,34,30],[34,31,34,47],[35,1,35,13],[35,14,35,30],[35,31,35,47],[31,44,33,47],[62,14,62,20],[62,21,62,47],[63,7,65,13],[63,14,63,20],[63,21,63,47],[67,14,67,20],[67,21,67,23],[67,28,67,34],[67,35,67,41],[67,42,67,47],[68,14,68,20],[68,21,68,47],[69,7,71,13],[69,14,69,20],[69,21,69,47],[23,36,24,39],[20,31,20,47],[21,31,21,47],[20,14,20,30],[9,40,9,47],[10,40,10,43],[10,44,10,47],[23,23,23,30],[24,23,24,26],[24,27,24,30],[23,40,23,47],[24,40,24,43],[24,44,24,47],[14,40,14,43],[14,44,16,47],[15,32,15,35],[15,40,15,43],[16,32,16,35],[16,40,16,43],[17,32,17,35],[17,36,19,39],[17,40,17,43],[17,44,19,47],[18,32,18,35],[70,14,70,20],[70,21,70,23],[70,28,70,34],[70,35,70,41],[70,42,70,47],[71,14,71,20],[71,21,71,47],[72,7,74,13],[72,14,72,20],[72,21,72,47],[73,14,73,20],[73,21,73,23],[73,28,73,34],[73,35,73,41],[73,42,73,47],[74,14,74,20],[74,21,74,47]]}
[]
[null,"Estratègia de Regeneració Urbana"]
[null,"Data de redacció:",null,null,null,null,null,null,"Títol:"]
[]
[null,"FITXA B: Anàlisi integrada"]
[]
[null,"1. ANÀLISI DEL VEUS - VISOR D'ESPAIS URBANS SENSIBLES DE LA COMUNITAT VALENCIANA"]
[null,"Resum Dades VEUS per a cada Secció Censal"]
[null,"Secció Censal",null,null,null,null,null,null,null,null,null,null,null,null,"Núm. Fitxa",null,null,null,null,"Codi SC",null,null,null,null,null,null,null,null,null,null,null,"Núm. Fitxa",null,null,null,null,"Codi SC"]
[null,"Àmbit",null,null,null,null,null,"Denominació de la dada",null,null,null,null,null,null,"FCP","VT_ Variable Tipificada ",null,null,null,"ΣVTxFCP",null,null,null,"Classificació",null,null,null,null,null,null,null,"FCP","VT_ Variable Tipificada ",null,null,null,"ΣVTxFCP",null,null,null,"Classificació"]
[null,null,null,null,null,null,null,null,null,null,null,null,null,null,null,null,null,null,null,null,null,null,null,"Dada",null,null,null,"Àmbit",null,null,null,null,null,null,null,null,null,null,null,null,"Dada",null,null,null,"Àmbit"]
[null,"R\nResidencial",null,null,null,null,null,"R1_  (%)- Superfície mitjana per habitant",null,null,null,null,null,null,null,null,null,null,null,{"$f":"ROUND((P12+P13+P14)*O12,2)","v":0},null,null,null,{"$f":"IF(P12=\"\",\"\",IF(P12<=1,\"BAIXA\",IF(P12<=2,\"MITJA\",\"ALTA\")))","v":""},null,null,null,{"$f":"IF(O12=\"\",\"\",IF(T12<=7.13,\"BAIXA\",IF(T12<=8.9,\"MITJA\",\"ALTA\")))","v":""},null,null,null,null,null,null,null,null,{"$f":"ROUND((AG12+AG13+AG14)*AF12,2)","v":0},null,null,null,{"$f":"IF(AG12=\"\",\"\",IF(AG12<=1,\"BAIXA\",IF(AG12<=2,\"MITJA\",\"ALTA\")))","v":""},null,null,null,{"$f":"IF(AF12=\"\",\"\",IF(AK12<=7.13,\"BAIXA\",IF(AK12<=8.9,\"MITJA\",\"ALTA\")))","v":""}]
[null,null,null,null,null,null,null,"R2_(€/m) -Valor cadastral",null,null,null,null,null,null,null,null,null,null,null,null,null,null,null,"",null,null,null,null,null,null,null,null,null,null,null,null,null,null,null,null,""]
[null,null,null,null,null,null,null,"R3_ (%)- Accessibilitat",null,null,null,null,null,null,null,null,null,null,null,null,null,null,null,"",null,null,null,null,null,null,null,null,null,null,null,null,null,null,null,null,""]
[null,"E\nSocioeconòmic",null,null,null,null,null,"E1_ (%)\nPoblació sense estudis",null,null,null,null,null,null,null,null,null,null,null,{"$f":"ROUND((P15+P16+P17)*O12,2)","v":0},null,null,null,"",null,null,null,{"$f":"IF(O12=\"\",\"\",IF(T15<=4.29,\"BAIXA\",IF(T15<=5.83,\"MITJA\",\"ALTA\")))","v":""},null,null,null,null,null,null,null,null,{"$f":"ROUND((AG15+AG16+AG17)*AF12,2)","v":0},null,null,null,"",null,null,null,{"$f":"IF(AF12=\"\",\"\",IF(AK15<=4.29,\"BAIXA\",IF(AK15<=5.83,\"MITJA\",\"ALTA\")))","v":""}]
[null,null,null,null,null,null,null,"E2_ (%) Taxa d'atur registrat estimat amb perspectiva de gènere",null,null,null,null,null,null,null,null,null,null,null,null,null,null,null,"",null,null,null,null,null,null,null,null,null,null,null,null,null,null,null,null,""]
[null,null,null,null,null,null,null,"E3_(%)Risc de pobresa i/o exclusió social",null,null,null,null,null,null,null,null,null,null,null,null,null,null,null,"",null,null,null,null,null,null,null,null,null,null,null,null,null,null,null,null,""]
[null,"D\nSociodemogràfica",null,null,null,null,null,"D1_  (%)  Població vulnerable amb perspectiva de gènere",null,null,null,null,null,null,null,null,null,null,null,{"$f":"ROUND((P18+P19+P20)*O12,2)","v":0},null,null,null,"",null,null,null,{"$f":"IF(O12=\"\",\"\",IF(T18<=5.01,\"BAIXA\",IF(T18<=6.75,\"MITJA\",\"ALTA\")))","v":""},null,null,null,null,null,null,null,null,{"$f":"ROUND((AG18+AG19+AG20)*AF12,2)","v":0},null,null,null,"",null,null,null,{"$f":"IF(AF12=\"\",\"\",IF(AK18<=5.01,\"BAIXA\",IF(AK18<=6.75,\"MITJA\",\"ALTA\")))","v":""}]
[null,null,null,null,null,null,null,"D2_ (%)  Llars vulnerables  amb perspectiva de gènere",null,null,null,null,null,null,null,null,null,null,null,null,null,null,null,"",null,null,null,null,null,null,null,null,null,null,null,null,null,null,null,null,""]
[null,null,null,null,null,null,null,"D3_ (%) Població immigrant  amb perspectiva de gènere",null,null,null,null,null,null,null,null,null,null,null,null,null,null,null,"",null,null,null,null,null,null,null,null,null,null,null,null,null,null,null,null,""]
[null,"Puntuació Total/ Secció Censal",null,null,null,null,null,null,null,null,null,null,null,null,{"$f":"+T12+T15+T18","v":0},null,null,null,null,null,null,null,null,null,null,null,null,null,null,null,null,{"$f":"+AK12+AK15+AK18","v":0}]
[null,"Tipologia Vulnerabilitat/ Secció Censal"]
[null,"Secció Censal",null,null,null,null,null,null,null,null,null,null,null,null,"Núm. Fitxa",null,null,null,null,"Codi SC",null,null,null,null,null,null,null,null,null,null,null,"Núm. Fitxa",null,null,null,null,"Codi SC"]
[null,"Àmbit",null,null,null,null,null,"Denominació de la dada",null,null,null,null,null,null,"FCP","VT_ Variable Tipificada ",null,null,null,"ΣVTxFCP",null,null,null,"Classificació",null,null,null,null,null,null,null,"FCP","VT_ Variable Tipificada ",null,null,null,"ΣVTxFCP",null,null,null,"Classificació"]
[null,null,null,null,null,null,null,null,null,null,null,null,null,null,null,null,null,null,null,null,null,null,null,"Dada",null,null,null,"Àmbit",null,null,null,null,null,null,null,null,null,null,null,null,"Dada",null,null,null,"Àmbit"]
[null,"R\nResidencial",null,null,null,null,null,"R1_  (%)- Superfície mitjana per habitant",null,null,null,null,null,null,null,null,null,null,null,{"$f":"ROUND((P26+P27+P28)*O26,2)","v":0},null,null,null,{"$f":"IF(P26=\"\",\"\",IF(P26<=1,\"BAIXA\",IF(P26<=2,\"MITJA\",\"ALTA\")))","v":""},null,null,null,{"$f":"IF(O26=\"\",\"\",IF(T26<=7.13,\"BAIXA\",IF(T26<=8.9,\"MITJA\",\"ALTA\")))","v":""},null,null,null,null,null,null,null,null,{"$f":"ROUND((AG26+AG27+AG28)*AF26,2)","v":0},null,null,null,{"$f":"IF(AG26=\"\",\"\",IF(AG26<=1,\"BAIXA\",IF(AG26<=2,\"MITJA\",\"ALTA\")))","v":""},null,null,null,{"$f":"IF(AF26=\"\",\"\",IF(AK26<=7.13,\"BAIXA\",IF(AK26<=8.9,\"MITJA\",\"ALTA\")))","v":""}]
[null,null,null,null,null,null,null,"R2_(€/m) -Valor cadastral",null,null,null,null,null,null,null,null,null,null,null,null,null,null,null,"",null,null,null,null,null,null,null,null,null,null,null,null,null,null,null,null,""]
[null,null,null,null,null,null,null,"R3_ (%)- Accessibilitat",null,null,null,null,null,null,null,null,null,null,null,null,null,null,null,"",null,null,null,null,null,null,null,null,null,null,null,null,null,null,null,null,""]
[null,"E\nSocioeconòmic",null,null,null,null,null,"E1_ (%)\nPoblació sense estudis",null,null,null,null,null,null,null,null,null,null,null,{"$f":"ROUND((P29+P30+P31)*O26,2)","v":0},null,null,null,"",null,null,null,{"$f":"IF(O26=\"\",\"\",IF(T29<=4.29,\"BAIXA\",IF(T29<=5.83,\"MITJA\",\"ALTA\")))","v":""},null,null,null,null,null,null,null,null,{"$f":"ROUND((AG29+AG30+AG31)*AF26,2)","v":0},null,null,null,"",null,null,null,{"$f":"IF(AF26=\"\",\"\",IF(AK29<=4.29,\"BAIXA\",IF(AK29<=5.83,\"MITJA\",\"ALTA\")))","v":""}]
[null,null,null,null,null,null,null,"E2_ (%) Taxa d'atur registrat estimat amb perspectiva de gènere",null,null,null,null,null,null,null,null,null,null,null,null,null,null,null,"",null,null,null,null,null,null,null,null,null,null,null,null,null,null,null,null,""]
[null,null,null,null,null,null,null,"E3_(%)Risc de pobresa i/o exclusió social",null,null,null,null,null,null,null,null,null,null,null,null,null,null,null,"",null,null,null,null,null,null,null,null,null,null,null,null,null,null,null,null,""]
[null,"D\nSociodemogràfica",null,null,null,null,null,"D1_  (%)  Població vulnerable amb perspectiva de gènere",null,null,null,null,null,null,null,null,null,null,null,{"$f":"ROUND((P32+P33+P34)*O26,2)","v":0},null,null,null,"",null,null,null,{"$f":"IF(O26=\"\",\"\",IF(T32<=5.01,\"BAIXA\",IF(T32<=6.75,\"MITJA\",\"ALTA\")))","v":""},null,null,null,null,null,null,null,null,{"$f":"ROUND((AG32+AG33+AG34)*AF26,2)","v":0},null,null,null,"",null,null,null,{"$f":"IF(AF26=\"\",\"\",IF(AK32<=5.01,\"BAIXA\",IF(AK32<=6.75,\"MITJA\",\"ALTA\")))","v":""}]
[null,null,null,null,null,null,null,"D2_ (%)  Llars vulnerables  amb perspectiva de gènere",null,null,null,null,null,null,null,null,null,null,null,null,null,null,null,"",null,null,null,null,null,null,null,null,null,null,null,null,null,null,null,null,""]
[null,null,null,null,null,null,null,"D3_ (%) Població immigrant  amb perspectiva de gènere",null,null,null,null,null,null,null,null,null,null,null,null,null,null,null,"",null,null,null,null,null,null,null,null,null,null,null,null,null,null,null,null,""]
[null,"Puntuació Total/ Secció Censal",null,null,null,null,null,null,null,null,null,null,null,null,{"$f":"+T26+T29+T32","v":0},null,null,null,null,null,null,null,null,null,null,null,null,null,null,null,null,{"$f":"+AK26+AK29+AK32","v":0}]
[null,"Tipologia Vulnerabilitat/ Secció Censal"]
[]
[null,"Resum Dades VEUS de la delimitació"]
[null,"Núm. Fitxa de Seccions Censals",null,null,null,null,null,null,null,null,null,null,null,null,{"$f":"+R9","v":0},null,null,{"$f":"+AI9","v":0},null,null,null,{"$f":"+R23","v":0},null,null,null,{"$f":"+AI23","v":0},null,null,{"$f":"+'FITXA B 2'!R9","v":0},null,null,{"$f":"+'FITXA B 2'!AI9","v":0},null,null,{"$f":"+'FITXA B 2'!R23","v":0},null,null,null,{"$f":"+'FITXA B 2'!AI23","v":0},null,null,null,{"$f":"+'FITXA B 3'!R9","v":0},null,null,{"$f":"+'FITXA B 3'!AI9","v":0}]
[null,"Percentatges de participació (%)"]
[null,"Puntuació/ Unitat Censal",null,null,null,null,null,null,null,null,null,null,null,null,{"$f":"+O21","v":0},null,null,{"$f":"+AF21","v":0},null,null,null,{"$f":"+O35","v":0},null,null,null,{"$f":"+AF35","v":0},null,null,{"$f":"+'FITXA B 2'!O21","v":0},null,null,{"$f":"+'FITXA B 2'!AF21","v":0},null,null,{"$f":"+'FITXA B 2'!O35","v":0},null,null,null,{"$f":"+'FITXA B 2'!AF35","v":0},null,null,null,{"$f":"+'FITXA B 3'!O21","v":0},null,null,{"$f":"+'FITXA B 3'!AF21","v":0}]
[null,"Vulnerabilitat/ Unitat Censal",null,null,null,null,null,null,null,null,null,null,null,null,{"$f":"IF(O22=0,\"\",IF(O22=\"POLIVULNERABILITAT\",\"POLI\",IF(O22=\"VULNERABILITAT INTEGRAL\",\"INTEGRAL\",\"RESIDUAL\")))","v":""},null,null,{"$f":"IF(AF22=0,\"\",IF(AF22=\"POLIVULNERABILITAT\",\"POLI\",IF(AF22=\"VULNERABILITAT INTEGRAL\",\"INTEGRAL\",\"RESIDUAL\")))","v":""},null,null,null,{"$f":"IF(O36=0,\"\",IF(O36=\"POLIVULNERABILIDAD\",\"POLI\",IF(O36=\"VULNERABILIDAD INTEGRAL\",\"INTEGRAL\",\"RESIDUAL\")))","v":""},null,null,null,{"$f":"IF(AF36=0,\"\",IF(AF36=\"POLIVULNERABILITAT\",\"POLI\",IF(AF36=\"VULNERABILITAT INTEGRAL\",\"INTEGRAL\",\"RESIDUAL\")))","v":""},null,null,{"$f":"IF('FITXA B 2'!O22=0,\"\",IF('FITXA B 2'!O22=\"POLIVULNERABILITAT\",\"POLI\",IF('FITXA B 2'!O22=\"VULNERABILITAT INTEGRAL\",\"INTEGRAL\",\"RESIDUAL\")))","v":""},null,null,{"$f":"IF('FITXA B 2'!AF22=0,\"\",IF('FITXA B 2'!AF22=\"POLIVULNERABILITAT\",\"POLI\",IF('FITXA B 2'!AF22=\"VULNERABILITAT INTEGRAL\",\"INTEGRAL\",\"RESIDUAL\")))","v":""},null,null,{"$f":"IF('FITXA B 2'!O36=0,\"\",IF('FITXA B 2'!O36=\"POLIVULNERABILITAT\",\"POLI\",IF('FITXA B 2'!O36=\"VULNERABILITAT INTEGRAL\",\"INTEGRAL\",\"RESIDUAL\")))","v":""},null,null,null,{"$f":"IF('FITXA B 2'!AF36=0,\"\",IF('FITXA B 2'!AF36=\"POLIVULNERABILITAT\",\"POLI\",IF('FITXA B 2'!AF36=\"VULNERABILITAT INTEGRAL\",\"INTEGRAL\",\"RESIDUAL\")))","v":""},null,null,null,{"$f":"IF('FITXA B 3'!O22=0,\"\",IF('FITXA B 3'!O22=\"POLIVULNERABILITAT\",\"POLI\",IF('FITXA B 3'!O22=\"VULNERABILITAT INTEGRAL\",\"INTEGRAL\",\"RESIDUAL\")))","v":""},null,null,{"$f":"IF('FITXA B 3'!AF22=0,\"\",IF('FITXA B 3'!AF22=\"POLIVULNERABILITAT\",\"POLI\",IF('FITXA B 3'!AF22=\"VULNERABILITAT INTEGRAL\",\"INTEGRAL\",\"RESIDUAL\")))","v":""}]
[null,"Nivell mitjà de vulnerabilitat de la delimitació NMV",null,null,null,null,null,"Puntuació de la delimitació",null,null,null,null,null,null,{"$f":" ((O41*O40)+(R41*R40)+(V40*V41)+(Z40*Z41)+(AC40*AC41)+(AF40*AF41)+(AI40*AI41)+(AM40*AM41)+(AQ40*AQ41)+(AT40*AT41))/100","v":0}]
[null,null,null,null,null,null,null,"Tipologia de vulnerabilitat de la delimitació"]
[]
[null,"2. ANÀLISI MUNICIPAL DE L'ÀREA"]
[null,"Àmbit",null,null,null,null,null,"Denominació de la dada",null,null,null,null,null,null,"Informes d'Inspecció Tècnica d'Edificis (vigents) _ Residencial Vivenda"]
[null,null,null,null,null,null,null,null,null,null,null,null,null,null,"Nre. d'edificis amb Informes realitzats"]
[null,null,null,null,null,null,null,null,null,null,null,null,null,null,"Nre. d'edificis amb Informes realitzats i registrats",null,null,null,null,null,null,null,null,null,null,null,0]
[null,"R\nResidencial",null,null,null,null,null,"R4_\nEstat de conservació",null,null,null,null,null,null,"Nre. d'edificis que requereixen intervencions amb caràcter urgent- INTu"]
[null,null,null,null,null,null,null,null,null,null,null,null,null,null,"Nre. d'edificis que requereixen intervencions a mitjà termini- INTm"]
[null,null,null,null,null,null,null,"R5_\nAccessibilitat",null,null,null,null,null,null,"Nre. d'edificis que requereixen supressió de barreres arquitectòniques."]
[null,null,null,null,null,null,null,null,null,null,null,null,null,null,"Nre. d'edificis que requereixen adequació de l'ascensor"]
[null,null,null,null,null,null,null,null,null,null,null,null,null,null,"Nre. d'edificis que requereixen col·locació d'ascensor"]
[null,null,null,null,null,null,null,"R6_\nAvaluació energètica, emissions  CO2\n(KgCO2/m2 año)",null,null,null,null,null,null,"Nre. edificis qualificació energètica  A",null,null,null,null,null,null,null,null,null,null,null,null,null,null,null,null,"Nre. edificis qualificació energètica  E"]
[null,null,null,null,null,null,null,null,null,null,null,null,null,null,"Nre. edificis qualificació energètica  B",null,null,null,null,null,null,null,null,null,null,null,null,null,null,null,null,"Nre. edificis qualificació energètica  F"]
[null,null,null,null,null,null,null,null,null,null,null,null,null,null,"Nre. edificis qualificació energètica  C",null,null,null,null,null,null,null,null,null,null,null,null,null,null,null,null,"Nre. edificis qualificació energètica  G"]
[null,null,null,null,null,null,null,null,null,null,null,null,null,null,"Nre. edificis qualificació energètica  D"]
[]
[null,"Àmbit",null,null,null,null,null,"Denominació de la dada",null,null,null,null,null,null,"Anàlisi de l'entorn"]
[null,"U\nEntorn urbà",null,null,null,null,null,"U1_\nEstat de conservació",null,null,null,null,null,null,"Descripció"]
[null,null,null,null,null,null,null,null,null,null,null,null,null,null,"Dada",null,null,null,null,null,null,null,null,null,"Font",null,null,null,null,null,null,null,null,null,null,"Enllaç"]
[null,null,null,null,null,null,null,null,null,null,null,null,null,null,"Observacions"]
[null,null,null,null,null,null,null,"U2_\nAccessibilitat",null,null,null,null,null,null,"Descripció"]
[null,null,null,null,null,null,null,null,null,null,null,null,null,null,"Dada",null,null,null,null,null,null,null,null,null,"Font",null,null,null,null,null,null,null,null,null,null,"Enllaç"]
[null,null,null,null,null,null,null,null,null,null,null,null,null,null,"Observacions"]
[null,null,null,null,null,null,null,"U3_\nEficiència energètica",null,null,null,null,null,null,"Descripció"]
[null,null,null,null,null,null,null,null,null,null,null,null,null,null,"Dada",null,null,null,null,null,null,null,null,null,"Font",null,null,null,null,null,null,null,null,null,null,"Enllaç"]
[null,null,null,null,null,null,null,null,null,null,null,null,null,null,"Observacions"]
[null,null,null,null,null,null,null,"U4_\nMobilitat",null,null,null,null,null,null,"Descripción"]
[null,null,null,null,null,null,null,null,null,null,null,null,null,null,"Dada",null,null,null,null,null,null,null,null,null,"Font",null,null,null,null,null,null,null,null,null,null,"Enllaç"]
[null,null,null,null,null,null,null,null,null,null,null,null,null,null,"Observaciones"]
[null,null,null,null,null,null,null,"U5_\nCanvi climàtic",null,null,null,null,null,null,"Descripción"]
[null,null,null,null,null,null,null,null,null,null,null,null,null,null,"Dada",null,null,null,null,null,null,null,null,null,"Font",null,null,null,null,null,null,null,null,null,null,"Enllaç"]
[null,null,null,null,null,null,null,null,null,null,null,null,null,null,"Observaciones"]
[]
[null,"3. ANÀLISI MITJANÇANT ALTRES ESTUDIS"]
[null,null,"Denominació de la dada"]
[null,null,null,null,null,null,null,null,null,null,null,null,null,null,"Descripció"]
[null,null,null,null,null,null,null,null,null,null,null,null,null,null,"Dada",null,null,null,null,null,null,null,null,null,"Font",null,null,null,null,null,null,null,null,null,null,"Enllaç"]
[null,null,null,null,null,null,null,null,null,null,null,null,null,null,"Observacions"]
[]
[]
[]
[]
[null,null,null,null,null,null,null,null,null,null,null,null,null,null,"Descripció"]
[null,null,null,null,null,null,null,null,null,null,null,null,null,null,"Dada",null,null,null,null,null,null,null,null,null,"Font",null,null,null,null,null,null,null,null,null,null,"Enllaç"]
[null,null,null,null,null,null,null,null,null,null,null,null,null,null,"Observacions"]
[]
[]
[]
[]
[null,null,null,null,null,null,null,null,null,null,null,null,null,null,"Descripció"]
[null,null,null,null,null,null,null,null,null,null,null,null,null,null,"Dada",null,null,null,null,null,null,null,null,null,"Font",null,null,null,null,null,null,null,null,null,null,"Enllaç"]
[null,null,null,null,null,null,null,null,null,null,null,null,null,null,"Observacions"]
[]
[]
[]
[]
[null,null,null,null,null,null,null,null,null,null,null,null,null,null,"Descripció"]
[null,null,null,null,null,null,null,null,null,null,null,null,null,null,"Dada",null,null,null,null,null,null,null,null,null,"Font",null,null,null,null,null,null,null,null,null,null,"Enllaç"]
[null,null,null,null,null,null,null,null,null,null,null,null,null,null,"Observacions"]
[]
[]
[]
[]
[null,null,null,null,null,null,null,null,null,null,null,null,null,null,"Descripció"]
[null,null,null,null,null,null,null,null,null,null,null,null,null,null,"Dada",null,null,null,null,null,null,null,null,null,"Font",null,null,null,null,null,null,null,null,null,null,"Enllaç"]
[null,null,null,null,null,null,null,null,null,null,null,null,null,null,"Observacions"]
[]
[]
[]
[]
[]
[null,"4. PROCÉS PARTICIPATIU EN L'ETAPA D'ANÀLISI"]
[null,null,"Metodologia"]
[]
[]
[]
[]
[]
[null,null,"Resum d'activitats"]
[]
[]
[]
[]
[]
[]
[]
[]
[null,null,"Conclusions"]
[]
[]
[]
[]
[null,"5. ANÀLISI DAFO"]
[null,null,"Origen intern",null,null,null,null,null,null,null,null,null,null,null,null,null,null,null,null,null,null,null,null,null,null,"Origen extern"]
[null,"Codi ",null,null,"D_ Febleses",null,null,null,null,null,null,null,null,null,null,null,null,null,null,null,null,null,null,null,"Codi ",null,null,"A_ Amenaces"]
[null,"D","_",null,null,null,null,null,null,null,null,null,null,null,null,null,null,null,null,null,null,null,null,null,"A","_"]
[]
[]
[null,"D","_",null,null,null,null,null,null,null,null,null,null,null,null,null,null,null,null,null,null,null,null,null,"A","_"]
[]
[]
[null,"D","_",null,null,null,null,null,null,null,null,null,null,null,null,null,null,null,null,null,null,null,null,null,"A","_"]
[]
[]
[null,"D","_",null,null,null,null,null,null,null,null,null,null,null,null,null,null,null,null,null,null,null,null,null,"A","_"]
[]
[]
[null,"D","_",null,null,null,null,null,null,null,null,null,null,null,null,null,null,null,null,null,null,null,null,null,"A","_"]
[]
[]
[null,"D","_",null,null,null,null,null,null,null,null,null,null,null,null,null,null,null,null,null,null,null,null,null,"A","_"]
[]
[]
[null,"D","_",null,null,null,null,null,null,null,null,null,null,null,null,null,null,null,null,null,null,null,null,null,"A","_"]
[]
[]
[null,"D","_",null,null,null,null,null,null,null,null,null,null,null,null,null,null,null,null,null,null,null,null,null,"A","_"]
[]
[]
[null,"Código ",null,null,"F_ Fortaleses",null,null,null,null,null,null,null,null,null,null,null,null,null,null,null,null,null,null,null,"Código ",null,null,"O_Oportunitats"]
[null,"F","_",null,null,null,null,null,null,null,null,null,null,null,null,null,null,null,null,null,null,null,null,null,"O","_"]
[]
[]
[null,"F","_",null,null,null,null,null,null,null,null,null,null,null,null,null,null,null,null,null,null,null,null,null,"O","_"]
[]
[]
[null,"F","_",null,null,null,null,null,null,null,null,null,null,null,null,null,null,null,null,null,null,null,null,null,"O","_"]
[]
[]
[null,"F","_",null,null,null,null,null,null,null,null,null,null,null,null,null,null,null,null,null,null,null,null,null,"O","_"]
[]
[]
[null,"F","_",null,null,null,null,null,null,null,null,null,null,null,null,null,null,null,null,null,null,null,null,null,"O","_"]
[]
[]
[null,"F","_",null,null,null,null,null,null,null,null,null,null,null,null,null,null,null,null,null,null,null,null,null,"O","_"]
[]
[]
[null,"F","_",null,null,null,null,null,null,null,null,null,null,null,null,null,null,null,null,null,null,null,null,null,"O","_"]
[]
[]
[null,"F","_",null,null,null,null,null,null,null,null,null,null,null,null,null,null,null,null,null,null,null,null,null,"O","_"]

{"sheet":"FITXA B 2","index":3,"n_rows":36,"n_cols":45,"rows_kept":36,"cut":false,"hidden":true,"merged":[[8,36,8,43],[8,44,8,47],[1,1,1,32],[1,33,4,47],[2,1,2,7],[2,8,2,32],[3,2,3,7],[3,9,3,32],[4,1,4,32],[6,1,6,47],[7,1,7,47],[9,1,10,6],[9,7,10,13],[9,14,10,14],[9,15,10,18],[9,19,10,22],[9,31,10,31],[9,32,10,35],[8,1,8,13],[8,14,8,16],[8,17,8,18],[8,19,8,26],[8,27,8,30],[8,31,8,33],[8,34,8,35],[9,23,9,30],[10,23,10,26],[10,27,10,30],[11,1,13,6],[11,7,11,13],[11,14,19,14],[11,15,11,18],[11,19,13,22],[11,23,11,26],[11,27,13,30],[14,44,16,47],[15,7,15,13],[15,15,15,18],[15,23,15,26],[15,32,15,35],[15,40,15,43],[13,7,13,13],[13,15,13,18],[13,23,13,26],[13,32,13,35],[13,40,13,43],[14,7,14,13],[14,15,14,18],[14,1,16,6],[19,7,19,13],[19,15,19,18],[19,23,19,26],[14,19,16,22],[14,23,14,26],[11,31,19,31],[11,32,11,35],[11,36,13,39],[11,40,11,43],[12,7,12,13],[12,15,12,18],[12,23,12,26],[12,32,12,35],[16,7,16,13],[16,15,16,18],[16,23,16,26],[16,32,16,35],[16,40,16,43],[12,40,12,43],[14,27,16,30],[14,32,14,35],[20,1,20,13],[20,14,20,30],[20,31,20,47],[17,27,19,30],[17,32,17,35],[17,36,19,39],[17,40,17,43],[17,44,19,47],[18,7,18,13],[18,15,18,18],[18,23,18,26],[18,32,18,35],[18,40,18,43],[17,1,19,6],[17,7,17,13],[17,15,17,18],[17,19,19,22],[17,23,17,26],[19,32,19,35],[19,40,19,43],[21,1,21,13],[21,14,21,30],[21,31,21,47],[22,1,22,13],[22,14,22,16],[22,17,22,18],[22,19,22,26],[22,27,22,30],[22,31,22,33],[22,34,22,35],[25,1,27,6],[25,7,25,13],[25,14,33,14],[25,15,25,18],[25,19,27,22],[25,23,25,26],[22,36,22,43],[22,44,22,47],[23,1,24,6],[23,7,24,13],[23,14,24,14],[23,15,24,18],[23,19,24,22],[23,31,24,31],[25,44,27,47],[28,32,28,35],[28,36,30,39],[28,40,28,43],[28,44,30,47],[23,32,24,35],[23,36,24,39],[26,7,26,13],[26,15,26,18],[26,23,26,26],[26,32,26,35],[26,40,26,43],[27,7,27,13],[27,15,27,18],[27,23,27,26],[27,32,27,35],[27,40,27,43],[25,27,27,30],[25,31,33,31],[25,32,25,35],[25,36,27,39],[25,40,25,43],[33,15,33,18],[33,23,33,26],[29,32,29,35],[29,40,29,43],[30,32,30,35],[30,40,30,43],[33,32,33,35],[33,40,33,43],[28,1,30,6],[28,7,28,13],[28,15,28,18],[28,19,30,22],[28,23,28,26],[28,27,30,30],[29,7,29,13],[29,15,29,18],[29,23,29,26],[30,7,30,13],[30,15,30,18],[30,23,30,26],[34,1,34,13],[34,14,34,30],[34,31,34,47],[35,1,35,13],[35,14,35,30],[35,31,35,47],[31,32,31,35],[31,36,33,39],[31,40,31,43],[31,44,33,47],[32,7,32,13],[32,15,32,18],[32,23,32,26],[32,32,32,35],[32,40,32,43],[33,7,33,13],[31,1,33,6],[31,7,31,13],[31,15,31,18],[31,19,33,22],[31,23,31,26],[31,27,33,30],[9,40,9,47],[10,40,10,43],[10,44,10,47],[23,23,23,30],[24,23,24,26],[24,27,24,30],[23,40,23,47],[24,40,24,43],[24,44,24,47],[11,44,13,47],[14,36,16,39],[14,40,14,43],[9,36,10,39]]}
[]
[null,"Estratègia de Regeneració Urbana"]
[null,"Data de redacció:",null,null,null,null,null,null,"Títol:"]
[]
[null,"FITXA B: Anàlisi integrada"]
[]
[null,"1. ANÀLISI DEL VEUS - VISOR D'ESPAIS URBANS SENSIBLES DE LA COMUNITAT VALENCIANA"]
[null,"Resum Dades VEUS per a cada Secció Censal"]
[null,"Secció Censal",null,null,null,null,null,null,null,null,null,null,null,null,"Núm. Fitxa",null,null,null,null,"Codi SC",null,null,null,null,null,null,null,null,null,null,null,"Núm. Fitxa",null,null,null,null,"Codi SC"]
[null,"Àmbit",null,null,null,null,null,"Denominació de la dada",null,null,null,null,null,null,"FCP","VT_ Variable Tipificada ",null,null,null,"ΣVTxFCP",null,null,null,"Classificació",null,null,null,null,null,null,null,"FCP","VT_ Variable Tipificada ",null,null,null,"ΣVTxFCP",null,null,null,"Classificació"]
[null,null,null,null,null,null,null,null,null,null,null,null,null,null,null,null,null,null,null,null,null,null,null,"Dada",null,null,null,"Àmbit",null,null,null,null,null,null,null,null,null,null,null,null,"Dada",null,null,null,"Àmbit"]
[null,"R\nResidencial",null,null,null,null,null,"R1_  (%)- Superfície mitjana per habitant",null,null,null,null,null,null,null,null,null,null,null,{"$f":"ROUND((P12+P13+P14)*O12,2)","v":0},null,null,null,{"$f":"IF(P12=\"\",\"\",IF(P12<=1,\"BAIXA\",IF(P12<=2,\"MITJA\",\"ALTA\")))","v":""},null,null,null,{"$f":"IF(O12=\"\",\"\",IF(T12<=7.13,\"BAIXA\",IF(T12<=8.9,\"MITJA\",\"ALTA\")))","v":""},null,null,null,null,null,null,null,null,{"$f":"ROUND((AG12+AG13+AG14)*AF12,2)","v":0},null,null,null,{"$f":"IF(AG12=\"\",\"\",IF(AG12<=1,\"BAIXA\",IF(AG12<=2,\"MITJA\",\"ALTA\")))","v":""},null,null,null,{"$f":"IF(AF12=\"\",\"\",IF(AK12<=7.13,\"BAIXA\",IF(AK12<=8.9,\"MITJA\",\"ALTA\")))","v":""}]
[null,null,null,null,null,null,null,"R2_(€/m) -Valor cadastral",null,null,null,null,null,null,null,null,null,null,null,null,null,null,null,"",null,null,null,null,null,null,null,null,null,null,null,null,null,null,null,null,""]
[null,null,null,null,null,null,null,"R3_ (%)- Accessibilitat",null,null,null,null,null,null,null,null,null,null,null,null,null,null,null,"",null,null,null,null,null,null,null,null,null,null,null,null,null,null,null,null,""]
[null,"E\nSocioeconòmic",null,null,null,null,null,"E1_ (%)\nPoblació sense estudis",null,null,null,null,null,null,null,null,null,null,null,{"$f":"ROUND((P15+P16+P17)*O12,2)","v":0},null,null,null,"",null,null,null,{"$f":"IF(O12=\"\",\"\",IF(T15<=4.29,\"BAIXA\",IF(T15<=5.83,\"MITJA\",\"ALTA\")))","v":""},null,null,null,null,null,null,null,null,{"$f":"ROUND((AG15+AG16+AG17)*AF12,2)","v":0},null,null,null,"",null,null,null,{"$f":"IF(AF12=\"\",\"\",IF(AK15<=4.29,\"BAIXA\",IF(AK15<=5.83,\"MITJA\",\"ALTA\")))","v":""}]
[null,null,null,null,null,null,null,"E2_ (%) Taxa d'atur registrat estimat amb perspectiva de gènere",null,null,null,null,null,null,null,null,null,null,null,null,null,null,null,"",null,null,null,null,null,null,null,null,null,null,null,null,null,null,null,null,""]
[null,null,null,null,null,null,null,"E3_(%)Risc de pobresa i/o exclusió social",null,null,null,null,null,null,null,null,null,null,null,null,null,null,null,"",null,null,null,null,null,null,null,null,null,null,null,null,null,null,null,null,""]
[null,"D\nSociodemogràfica",null,null,null,null,null,"D1_  (%)  Població vulnerable amb perspectiva de gènere",null,null,null,null,null,null,null,null,null,null,null,{"$f":"ROUND((P18+P19+P20)*O12,2)","v":0},null,null,null,"",null,null,null,{"$f":"IF(O12=\"\",\"\",IF(T18<=5.01,\"BAIXA\",IF(T18<=6.75,\"MITJA\",\"ALTA\")))","v":""},null,null,null,null,null,null,null,null,{"$f":"ROUND((AG18+AG19+AG20)*AF12,2)","v":0},null,null,null,"",null,null,null,{"$f":"IF(AF12=\"\",\"\",IF(AK18<=5.01,\"BAIXA\",IF(AK18<=6.75,\"MITJA\",\"ALTA\")))","v":""}]
[null,null,null,null,null,null,null,"D2_ (%)  Llars vulnerables  amb perspectiva de gènere",null,null,null,null,null,null,null,null,null,null,null,null,null,null,null,"",null,null,null,null,null,null,null,null,null,null,null,null,null,null,null,null,""]
[null,null,null,null,null,null,null,"D3_ (%) Població immigrant  amb perspectiva de gènere",null,null,null,null,null,null,null,null,null,null,null,null,null,null,null,"",null,null,null,null,null,null,null,null,null,null,null,null,null,null,null,null,""]
[null,"Puntuació Total/ Secció Censal",null,null,null,null,null,null,null,null,null,null,null,null,{"$f":"+T12+T15+T18","v":0},null,null,null,null,null,null,null,null,null,null,null,null,null,null,null,null,{"$f":"+AK12+AK15+AK18","v":0}]
[null,"Tipologia Vulnerabilitat/ Secció Censal"]
[null,"Secció Censal",null,null,null,null,null,null,null,null,null,null,null,null,"Núm. Fitxa",null,null,null,null,"Codi SC",null,null,null,null,null,null,null,null,null,null,null,"Núm. Fitxa",null,null,null,null,"Codi SC"]
[null,"Àmbit",null,null,null,null,null,"Denominació de la dada",null,null,null,null,null,null,"FCP","VT_ Variable Tipificada ",null,null,null,"ΣVTxFCP",null,null,null,"Classificació",null,null,null,null,null,null,null,"FCP","VT_ Variable Tipificada ",null,null,null,"ΣVTxFCP",null,null,null,"Classificació"]
[null,null,null,null,null,null,null,null,null,null,null,null,null,null,null,null,null,null,null,null,null,null,null,"Dada",null,null,null,"Àmbit",null,null,null,null,null,null,null,null,null,null,null,null,"Dada",null,null,null,"Àmbit"]
[null,"R\nResidencial",null,null,null,null,null,"R1_  (%)- Superfície mitjana per habitant",null,null,null,null,null,null,null,null,null,null,null,{"$f":"ROUND((P26+P27+P28)*O26,2)","v":0},null,null,null,{"$f":"IF(P26=\"\",\"\",IF(P26<=1,\"BAIXA\",IF(P26<=2,\"MITJA\",\"ALTA\")))","v":""},null,null,null,{"$f":"IF(O26=\"\",\"\",IF(T26<=7.13,\"BAIXA\",IF(T26<=8.9,\"MITJA\",\"ALTA\")))","v":""},null,null,null,null,null,null,null,null,{"$f":"ROUND((AG26+AG27+AG28)*AF26,2)","v":0},null,null,null,{"$f":"IF(AG26=\"\",\"\",IF(AG26<=1,\"BAIXA\",IF(AG26<=2,\"MITJA\",\"ALTA\")))","v":""},null,null,null,{"$f":"IF(AF26=\"\",\"\",IF(AK26<=7.13,\"BAIXA\",IF(AK26<=8.9,\"MITJA\",\"ALTA\")))","v":""}]
[null,null,null,null,null,null,null,"R2_(€/m) -Valor cadastral",null,null,null,null,null,null,null,null,null,null,null,null,null,null,null,"",null,null,null,null,null,null,null,null,null,null,null,null,null,null,null,null,""]
[null,null,null,null,null,null,null,"R3_ (%)- Accessibilitat",null,null,null,null,null,null,null,null,null,null,null,null,null,null,null,"",null,null,null,null,null,null,null,null,null,null,null,null,null,null,null,null,""]
[null,"E\nSocioeconòmic",null,null,null,null,null,"E1_ (%)\nPoblació sense estudis",null,null,null,null,null,null,null,null,null,null,null,{"$f":"ROUND((P29+P30+P31)*O26,2)","v":0},null,null,null,"",null,null,null,{"$f":"IF(O26=\"\",\"\",IF(T29<=4.29,\"BAIXA\",IF(T29<=5.83,\"MITJA\",\"ALTA\")))","v":""},null,null,null,null,null,null,null,null,{"$f":"ROUND((AG29+AG30+AG31)*AF26,2)","v":0},null,null,null,"",null,null,null,{"$f":"IF(AF26=\"\",\"\",IF(AK29<=4.29,\"BAIXA\",IF(AK29<=5.83,\"MITJA\",\"ALTA\")))","v":""}]
[null,null,null,null,null,null,null,"E2_ (%) Taxa d'atur registrat estimat amb perspectiva de gènere",null,null,null,null,null,null,null,null,null,null,null,null,null,null,null,"",null,null,null,null,null,null,null,null,null,null,null,null,null,null,null,null,""]
[null,null,null,null,null,null,null,"E3_(%)Risc de pobresa i/o exclusió social",null,null,null,null,null,null,null,null,null,null,null,null,null,null,null,"",null,null,null,null,null,null,null,null,null,null,null,null,null,null,null,null,""]
[null,"D\nSociodemogràfica",null,null,null,null,null,"D1_  (%)  Població vulnerable amb perspectiva de gènere",null,null,null,null,null,null,null,null,null,null,null,{"$f":"ROUND((P32+P33+P34)*O26,2)","v":0},null,null,null,"",null,null,null,{"$f":"IF(O26=\"\",\"\",IF(T32<=5.01,\"BAIXA\",IF(T32<=6.75,\"MITJA\",\"ALTA\")))","v":""},null,null,null,null,null,null,null,null,{"$f":"ROUND((AG32+AG33+AG34)*AF26,2)","v":0},null,null,null,"",null,null,null,{"$f":"IF(AF26=\"\",\"\",IF(AK32<=5.01,\"BAIXA\",IF(AK32<=6.75,\"MITJA\",\"ALTA\")))","v":""}]
[null,null,null,null,null,null,null,"D2_ (%)  Llars vulnerables  amb perspectiva de gènere",null,null,null,null,null,null,null,null,null,null,null,null,null,null,null,"",null,null,null,null,null,null,null,null,null,null,null,null,null,null,null,null,""]
[null,null,null,null,null,null,null,"D3_ (%) Població immigrant  amb perspectiva de gènere",null,null,null,null,null,null,null,null,null,null,null,null,null,null,null,"",null,null,null,null,null,null,null,null,null,null,null,null,null,null,null,null,""]
[null,"Puntuació Total/ Secció Censal",null,null,null,null,null,null,null,null,null,null,null,null,{"$f":"+T26+T29+T32","v":0},null,null,null,null,null,null,null,null,null,null,null,null,null,null,null,null,{"$f":"+AK26+AK29+AK32","v":0}]
[null,"Tipologia Vulnerabilitat/ Secció Censal"]

{"sheet":"FITXA B 3","index":4,"n_rows":22,"n_cols":45,"rows_kept":22,"cut":false,"hidden":true,"merged":[[1,1,1,32],[1,33,4,47],[2,1,2,7],[2,8,2,32],[3,2,3,7],[3,9,3,32],[4,1,4,32],[6,1,6,47],[7,1,7,47],[8,1,8,13],[8,14,8,16],[8,17,8,18],[8,19,8,26],[8,27,8,30],[8,31,8,33],[8,34,8,35],[8,36,8,43],[8,44,8,47],[9,1,10,6],[9,7,10,13],[9,14,10,14],[9,15,10,18],[9,19,10,22],[9,31,10,31],[9,32,10,35],[9,36,10,39],[9,23,9,30],[10,23,10,26],[10,27,10,30],[11,44,13,47],[12,7,12,13],[12,15,12,18],[12,23,12,26],[12,32,12,35],[12,40,12,43],[13,40,13,43],[11,36,13,39],[11,40,11,43],[13,23,13,26],[13,32,13,35],[11,31,19,31],[11,32,11,35],[18,32,18,35],[11,23,11,26],[11,27,13,30],[11,1,13,6],[11,7,11,13],[11,14,19,14],[11,15,11,18],[11,19,13,22],[14,1,16,6],[14,15,14,18],[14,19,16,22],[13,7,13,13],[13,15,13,18],[14,7,14,13],[14,44,16,47],[15,7,15,13],[15,15,15,18],[15,23,15,26],[15,32,15,35],[15,40,15,43],[16,7,16,13],[16,15,16,18],[16,23,16,26],[16,32,16,35],[16,40,16,43],[14,27,16,30],[14,32,14,35],[14,36,16,39],[14,40,14,43],[14,23,14,26],[17,36,19,39],[17,40,17,43],[17,44,19,47],[17,1,19,6],[17,7,17,13],[17,15,17,18],[17,19,19,22],[17,23,17,26],[18,7,18,13],[18,15,18,18],[18,23,18,26],[18,40,18,43],[9,40,9,47],[10,40,10,43],[10,44,10,47],[21,1,21,13],[21,14,21,30],[21,31,21,47],[19,7,19,13],[19,15,19,18],[19,23,19,26],[19,32,19,35],[19,40,19,43],[20,1,20,13],[20,14,20,30],[20,31,20,47],[17,27,19,30],[17,32,17,35]]}
[]
[null,"Estratègia de Regeneració Urbana"]
[null,"Data de redacció:",null,null,null,null,null,null,"Títol:"]
[]
[null,"FITXA B: Anàlisi integrada"]
[]
[null,"1.  ANÀLISI DEL VEUS - VISOR D'ESPAIS URBANS SENSIBLES DE LA COMUNITAT VALENCIANA"]
[null,"Resum Dades VEUS per a cada Secció Censal"]
[null,"Secció Censal",null,null,null,null,null,null,null,null,null,null,null,null,"Núm. Fitxa",null,null,null,null,"Codi SC",null,null,null,null,null,null,null,null,null,null,null,"Núm. Fitxa",null,null,null,null,"Codi SC"]
[null,"Àmbit",null,null,null,null,null,"Denominació de la dada",null,null,null,null,null,null,"FCP","VT_ Variable Tipificada ",null,null,null,"ΣVTxFCP",null,null,null,"Classificació",null,null,null,null,null,null,null,"FCP","VT_ Variable Tipificada ",null,null,null,"ΣVTxFCP",null,null,null,"Classificació"]
[null,null,null,null,null,null,null,null,null,null,null,null,null,null,null,null,null,null,null,null,null,null,null,"Dada",null,null,null,"Àmbit",null,null,null,null,null,null,null,null,null,null,null,null,"Dada",null,null,null,"Àmbit"]
[null,"R\nResidencial",null,null,null,null,null,"R1_  (%)- Superfície mitjana per habitant",null,null,null,null,null,null,null,null,null,null,null,{"$f":"ROUND((P12+P13+P14)*O12,2)","v":0},null,null,null,{"$f":"IF(P12=\"\",\"\",IF(P12<=1,\"BAIXA\",IF(P12<=2,\"MITJA\",\"ALTA\")))","v":""},null,null,null,{"$f":"IF(O12=\"\",\"\",IF(T12<=7.13,\"BAIXA\",IF(T12<=8.9,\"MITJA\",\"ALTA\")))","v":""},null,null,null,null,null,null,null,null,{"$f":"ROUND((AG12+AG13+AG14)*AF12,2)","v":0},null,null,null,{"$f":"IF(AG12=\"\",\"\",IF(AG12<=1,\"BAIXA\",IF(AG12<=2,\"MITJA\",\"ALTA\")))","v":""},null,null,null,{"$f":"IF(AF12=\"\",\"\",IF(AK12<=7.13,\"BAIXA\",IF(AK12<=8.9,\"MITJA\",\"ALTA\")))","v":""}]
[null,null,null,null,null,null,null,"R2_(€/m) -Valor cadastral",null,null,null,null,null,null,null,null,null,null,null,null,null,null,null,"",null,null,null,null,null,null,null,null,null,null,null,null,null,null,null,null,""]
[null,null,null,null,null,null,null,"R3_ (%)- Accessibilitat",null,null,null,null,null,null,null,null,null,null,null,null,null,null,null,"",null,null,null,null,null,null,null,null,null,null,null,null,null,null,null,null,""]
[null,"E\nSocioeconòmic",null,null,null,null,null,"E1_ (%)\nPoblació sense estudis",null,null,null,null,null,null,null,null,null,null,null,{"$f":"ROUND((P15+P16+P17)*O12,2)","v":0},null,null,null,"",null,null,null,{"$f":"IF(O12=\"\",\"\",IF(T15<=4.29,\"BAIXA\",IF(T15<=5.83,\"MITJA\",\"ALTA\")))","v":""},null,null,null,null,null,null,null,null,{"$f":"ROUND((AG15+AG16+AG17)*AF12,2)","v":0},null,null,null,"",null,null,null,{"$f":"IF(AF12=\"\",\"\",IF(AK15<=4.29,\"BAIXA\",IF(AK15<=5.83,\"MITJA\",\"ALTA\")))","v":""}]
[null,null,null,null,null,null,null,"E2_ (%) Taxa d'atur registrat estimat amb perspectiva de gènere",null,null,null,null,null,null,null,null,null,null,null,null,null,null,null,"",null,null,null,null,null,null,null,null,null,null,null,null,null,null,null,null,""]
[null,null,null,null,null,null,null,"E3_(%)Risc de pobresa i/o exclusió social",null,null,null,null,null,null,null,null,null,null,null,null,null,null,null,"",null,null,null,null,null,null,null,null,null,null,null,null,null,null,null,null,""]
[null,"D\nSociodemogràfica",null,null,null,null,null,"D1_  (%)  Població vulnerable amb perspectiva de gènere",null,null,null,null,null,null,null,null,null,null,null,{"$f":"ROUND((P18+P19+P20)*O12,2)","v":0},null,null,null,"",null,null,null,{"$f":"IF(O12=\"\",\"\",IF(T18<=5.01,\"BAIXA\",IF(T18<=6.75,\"MITJA\",\"ALTA\")))","v":""},null,null,null,null,null,null,null,null,{"$f":"ROUND((AG18+AG19+AG20)*AF12,2)","v":0},null,null,null,"",null,null,null,{"$f":"IF(AF12=\"\",\"\",IF(AK18<=5.01,\"BAIXA\",IF(AK18<=6.75,\"MITJA\",\"ALTA\")))","v":""}]
[null,null,null,null,null,null,null,"D2_ (%)  Llars vulnerables  amb perspectiva de gènere",null,null,null,null,null,null,null,null,null,null,null,null,null,null,null,"",null,null,null,null,null,null,null,null,null,null,null,null,null,null,null,null,""]
[null,null,null,null,null,null,null,"D3_ (%) Població immigrant  amb perspectiva de gènere",null,null,null,null,null,null,null,null,null,null,null,null,null,null,null,"",null,null,null,null,null,null,null,null,null,null,null,null,null,null,null,null,""]
[null,"Puntuació Total/ Secció Censal",null,null,null,null,null,null,null,null,null,null,null,null,{"$f":"+T12+T15+T18","v":0},null,null,null,null,null,null,null,null,null,null,null,null,null,null,null,null,{"$f":"+AK12+AK15+AK18","v":0}]
[null,"Tipologia Vulnerabilitat/ Secció Censal"]

{"sheet":"FITXA C","index":5,"n_rows":49,"n_cols":41,"rows_kept":49,"cut":false,"hidden":false,"merged":[[40,16,43,22],[40,23,43,26],[6,1,6,44],[40,27,43,33],[40,34,43,37],[40,38,43,44],[7,1,7,3],[8,3,11,3],[13,11,13,44],[8,4,9,10],[8,11,9,44],[10,4,13,5],[7,11,7,44],[10,11,10,44],[11,11,11,44],[12,11,12,44],[12,6,12,7],[13,6,13,7],[7,4,7,10],[14,1,17,1],[14,2,17,2],[14,3,17,3],[14,4,15,10],[14,11,15,44],[48,1,51,4],[40,1,43,4],[40,5,43,11],[44,1,47,4],[44,5,47,11],[48,5,51,11],[39,1,39,44],[10,6,10,7],[11,6,11,7],[44,38,47,44],[48,12,51,15],[48,16,51,22],[48,23,51,26],[48,27,51,33],[48,34,51,37],[48,38,51,44],[44,12,47,15],[44,16,47,22],[44,23,47,26],[44,27,47,33],[44,34,47,37],[40,12,43,15],[8,1,11,1],[8,2,11,2],[16,4,19,5],[16,6,16,7],[16,11,16,44],[17,6,17,7],[17,11,17,44],[18,6,18,7],[18,11,18,44],[19,6,19,7],[19,11,19,44],[20,1,23,1],[20,2,23,2],[20,3,23,3],[20,4,21,10],[20,11,21,44],[22,4,25,5],[22,6,22,7],[22,11,22,44],[23,6,23,7],[23,11,23,44],[24,6,24,7],[24,11,24,44],[25,6,25,7],[25,11,25,44],[26,4,27,10],[26,11,27,44],[28,6,28,7],[28,11,28,44],[29,6,29,7],[29,11,29,44],[28,4,31,5],[30,6,30,7],[30,11,30,44],[31,6,31,7],[31,11,31,44],[1,1,1,31],[1,32,4,44],[2,1,2,7],[2,8,2,31],[3,2,3,7],[3,9,3,31],[4,1,4,31],[32,1,35,1],[32,2,35,2],[32,3,35,3],[32,4,33,10],[32,11,33,44],[34,4,37,5],[34,6,34,7],[34,11,34,44],[35,6,35,7],[35,11,35,44],[36,6,36,7],[36,11,36,44],[37,6,37,7],[37,11,37,44],[26,1,29,1],[26,2,29,2],[26,3,29,3]]}
[]
[null,"Estratègia de Regeneració Urbana"]
[null,"Data de redacció:",null,null,null,null,null,null,"Títol:"]
[]
[null,"FITXA C: Diagnòstic i resultats"]
[]
[null,"1. NECESSITATS"]
[null,"Codi",null,null,"Referències DAFO",null,null,null,null,null,null,"Descripció"]
[null,"N","_"]
[]
[null,null,null,null,"Línies actuació",null,"L.A."]
[null,null,null,null,null,null,"L.A."]
[null,null,null,null,null,null,"L.A."]
[null,null,null,null,null,null,"L.A."]
[null,"N","_"]
[]
[null,null,null,null,"Línies actuació",null,"L.A."]
[null,null,null,null,null,null,"L.A."]
[null,null,null,null,null,null,"L.A."]
[null,null,null,null,null,null,"L.A."]
[null,"N","_"]
[]
[null,null,null,null,"Línies actuació",null,"L.A."]
[null,null,null,null,null,null,"L.A."]
[null,null,null,null,null,null,"L.A."]
[null,null,null,null,null,null,"L.A."]
[null,"N","_"]
[]
[null,null,null,null,"Línies actuació",null,"L.A."]
[null,null,null,null,null,null,"L.A."]
[null,null,null,null,null,null,"L.A."]
[null,null,null,null,null,null,"L.A."]
[null,"N","_"]
[]
[null,null,null,null,"Línies actuació",null,"L.A."]
[null,null,null,null,null,null,"L.A."]
[null,null,null,null,null,null,"L.A."]
[null,null,null,null,null,null,"L.A."]
[null,null,null,null,null,null,null,null,null,null,null,null,null,null,null,null,null,null,null,null,null,null,null,null,null,null,null,null,null,null,null,null,null,null,null,null,null,null,null,null,0]
[null,"2. TEMES PRIORITARIS DE L'AGENDA URBANA EU"]
[null,null,null,null,null,"Mobilitat urbana",null,null,null,null,null,null,null,null,null,null,"Transició energètica",null,null,null,null,null,null,null,null,null,null,"Ús sostenible del sòl i solucions basades en la naturalesa",null,null,null,null,null,null,null,null,null,null,"Habitatge"]
[]
[]
[]
[null,null,null,null,null,"Inclusió d'immigrants i refugiats",null,null,null,null,null,null,null,null,null,null,"Ocupació i competències en l'economia local",null,null,null,null,null,null,null,null,null,null,"Pobresa energètica",null,null,null,null,null,null,null,null,null,null,"Qualitat de l'aire"]
[]
[]
[]
[null,null,null,null,null,"Economia circular",null,null,null,null,null,null,null,null,null,null,"Adaptació al clima",null,null,null,null,null,null,null,null,null,null,"Contractació pública innovadora i responsable",null,null,null,null,null,null,null,null,null,null,"Transició digital"]

{"sheet":"FITXA D","index":6,"n_rows":48,"n_cols":43,"rows_kept":48,"cut":false,"hidden":false,"merged":[[1,1,1,31],[1,32,4,44],[4,1,4,31],[17,1,25,44],[34,27,37,33],[34,34,37,37],[34,13,37,16],[34,17,37,22],[34,23,37,26],[34,6,37,12],[8,4,11,4],[8,5,9,11],[13,7,13,8],[8,1,11,2],[7,42,7,44],[7,36,7,41],[48,1,54,44],[42,38,45,44],[15,1,15,44],[34,38,37,44],[38,1,41,5],[38,6,41,12],[38,13,41,16],[38,17,41,22],[38,23,41,26],[38,27,41,33],[38,34,41,37],[38,38,41,44],[33,3,33,44],[34,1,37,5],[42,23,45,26],[42,1,45,5],[42,6,45,12],[42,13,45,16],[12,12,12,35],[12,36,12,41],[42,34,45,37],[28,1,31,44],[42,17,45,22],[42,27,45,33],[12,42,12,44],[13,12,13,35],[13,36,13,41],[13,42,13,44],[10,5,13,6],[10,7,10,8],[11,7,11,8],[12,7,12,8],[11,12,11,35],[11,36,11,41],[11,42,11,44],[8,3,11,3],[3,9,3,31],[7,12,7,35],[8,12,9,35],[8,36,9,41],[8,42,9,44],[10,12,10,35],[10,36,10,41],[10,42,10,44],[2,1,2,7],[2,8,2,31],[3,2,3,7],[7,1,7,4],[7,5,7,11],[6,1,6,44]]}
[]
[null,"Estratègia de Regeneració Urbana"]
[null,"Data de redacció:",null,null,null,null,null,null,"Títol:"]
[]
[null,"FITXA D: Pla d'implementació"]
[]
[null,"1. IDENTIFICACIÓ DE LA LÍNIA D'ACTUACIÓ"]
[null,"Codi",null,null,null,"Necessitat",null,null,null,null,null,null,"Descripció",null,null,null,null,null,null,null,null,null,null,null,null,null,null,null,null,null,null,null,null,null,null,null,"Pressupost (€)",null,null,null,null,null,"Mesos"]
[null,"LA",null,"_"]
[]
[null,null,null,null,null,"Operacions",null,"OP."]
[null,null,null,null,null,null,null,"OP."]
[null,null,null,null,null,null,null,"OP."]
[null,null,null,null,null,null,null,"OP."]
[]
[null,"2. MEMÒRIA DESCRIPTIVA DE LA LÍNIA D'ACTUACIÓ"]
[null,null,null,"Descripció"]
[]
[]
[]
[]
[]
[]
[]
[]
[]
[]
[null,null,null,"Objectius i resultats esperats"]
[]
[]
[]
[]
[]
[null,null,null,"Temes prioritaris de l'Agenda Urbana EU"]
[null,null,null,null,null,null,"Mobilitat urbana",null,null,null,null,null,null,null,null,null,null,"Transició energètica",null,null,null,null,null,null,null,null,null,"Ús sostenible del sòl i solucions basades en la naturalesa",null,null,null,null,null,null,null,null,null,null,"Habitatge"]
[]
[]
[]
[null,null,null,null,null,null,"Inclusió d'immigrants i refugiats",null,null,null,null,null,null,null,null,null,null,"Ocupació i competències en l'economia local",null,null,null,null,null,null,null,null,null,"Pobresa energètica",null,null,null,null,null,null,null,null,null,null,"Qualitat d l'aire"]
[]
[]
[]
[null,null,null,null,null,null,"Economia circular",null,null,null,null,null,null,null,null,null,null,"Adaptació al clima",null,null,null,null,null,null,null,null,null,"Contractació pública innovadora i responsable",null,null,null,null,null,null,null,null,null,null,"Transició digital"]
[]
[]
[]
[]
[null,null,null,"Metodologia"]

{"sheet":"ayudas","index":7,"n_rows":15,"n_cols":1,"rows_kept":15,"cut":false,"hidden":true,"merged":[]}
["PROVINCIA"]
["Castelló"]
["València"]
["Alacant"]
[]
["VULNERABILITAT RESIDUAL"]
["POLIVULNERABILITAT"]
["VULNERABILITAT INTEGRAL"]
[]
["DATO"]
["R   \nResidencial"]
["E   \nSocioeconòmic"]
["D   \nSociodemogràfica"]
["U   \nEntorn Urbà"]
["O   \nAltres "]